bitfinex/quotes_SOLUSD_20250217
["timestamp","ask_amount","ask_price","bid_price","bid_amount"]
[1739829086074,0.0001,180.77,180.73,23.72774186]
[1739829087165,0.0001,180.77,180.72,18.19474186]
[1739829087470,18.19484186,180.77,180.72,5.5334]
[1739829088951,18.19484186,180.77,180.72,23.72814186]
[1739829089273,0.0001,180.77,180.72,23.72814186]
[1739829090545,18.19474186,180.76,180.7,18.25774186]
[1739829090745,18.19474186,180.76,180.7,23.79144186]
[1739829090945,18.19484186,180.77,180.71,18.19474186]
[1739829091575,0.0001,180.77,180.71,18.19474186]
[1739829092270,0.0001,180.77,180.72,5.5334]
[1739829092566,0.0001,180.77,180.72,23.72814186]
[1739829092965,0.0001,180.77,180.73,18.19474186]
[1739829093354,0.0001,180.77,180.74,18.19474186]
[1739829093561,0.0001,180.77,180.76,18.19474186]
[1739829094153,0.0001,180.77,180.76,23.72684186]
[1739829094352,0.0001,180.77,180.76,24.55634444]
[1739829094761,0.0001,180.77,180.76,23.72684186]
[1739829094984,0.0001,180.77,180.76,24.55638278]
[1739829095568,0.0001,180.77,180.76,23.72684186]
[1739829102484,0.0001,180.77,180.76,24.55642439]
[1739829102701,0.0001,180.77,180.76,18.00815305]
[1739829103260,0.0001,180.77,180.76,17.17857052]
[1739829104495,0.0001,180.77,180.76,112.19041905]
[1739829106476,0.0001,180.77,180.76,98.77857052]
[1739829107288,0.0001,180.77,180.76,113.01999492]
[1739829107463,0.0001,180.77,180.76,112.19041905]
[1739829107658,0.0001,180.79,180.78,33.41184853]
[1739829107880,0.0001,180.79,180.78,128.48759404]
[1739829108072,0.0001,180.79,180.78,127.65831905]
[1739829108391,0.0001,180.79,180.78,132.18981905]
[1739829109970,0.0001,180.79,180.78,118.77797052]
[1739829111097,0.0001,180.79,180.78,132.18981905]
[1739829113173,0.0001,180.79,180.78,133.18981905]
[1739829113497,0.0001,180.79,180.78,132.18981905]
[1739829113896,0.0001,180.79,180.78,118.77797052]
[1739829114576,0.0001,180.79,180.78,132.18981905]
[1739829116191,0.0001,180.79,180.78,118.77797052]
[1739829121816,0.0001,180.79,180.78,113.24647052]
[1739829122114,0.0001,180.79,180.78,81.6]
[1739829123412,0.0001,180.79,180.78,98.77797052]
[1739829124488,0.0001,180.79,180.78,87.1315]
[1739829125012,0.0001,180.79,180.78,98.77797052]
[1739829125784,0.0001,180.79,180.78,81.6]
[1739829126485,6.055,180.78,180.76,0.063]
[1739829126712,11.64647052,180.77,180.76,0.063]
[1739829127105,17.17827052,180.77,180.76,0.063]
[1739829131841,11.64647052,180.77,180.76,0.063]
[1739829132541,6.055,180.78,180.76,0.063]
[1739829132741,0.0001,180.79,180.76,0.063]
[1739829133721,0.0001,180.79,180.76,11.70947052]
[1739829133922,0.0001,180.79,180.78,11.64647052]
[1739829134752,0.0001,180.79,180.78,18.1954426]
[1739829135556,0.0001,180.79,180.78,23.7269426]
[1739829136048,0.0001,180.79,180.78,5.5315]
[1739829137159,0.0001,180.79,180.77,5.5318]
[1739829137534,0.0001,180.79,180.77,23.7272426]
[1739829139967,0.0001,180.79,180.77,5.5318]
[1739829141162,18.1954426,180.78,180.76,0.063]
[1739829141457,18.1954426,180.77,180.76,0.063]
[1739829141935,18.1955426,180.79,180.76,0.063]
[1739829143669,18.1954426,180.78,180.76,0.063]
[1739829144156,18.1955426,180.79,180.76,0.063]
[1739829144546,0.0001,180.79,180.76,0.063]
[1739829144868,0.0001,180.79,180.76,18.2584426]
[1739829145435,0.0001,180.79,180.77,5.5318]
[1739829147356,0.0001,180.79,180.76,5.5951]
[1739829148277,0.0001,180.79,180.76,0.063]
[1739829148446,18.1954426,180.78,180.76,0.063]
[1739829149561,18.1955426,180.79,180.76,0.063]
[1739829150252,0.0001,180.79,180.76,0.063]
[1739829150940,0.0001,180.79,180.76,18.2584426]
[1739829151351,0.0001,180.79,180.77,18.1954426]
[1739829151581,0.0001,180.79,180.78,5.5315]
[1739829155355,18.1955426,180.79,180.76,5.5951]
[1739829155664,18.1954426,180.78,180.76,0.063]
[1739829156585,18.1954426,180.77,180.76,0.063]
[1739829159083,0.0001,180.79,180.76,0.063]
[1739829160616,0.0001,180.79,180.77,18.1954426]
[1739829160784,0.0001,180.79,180.78,18.1954426]
[1739829161701,0.0001,180.79,180.78,23.7269426]
[1739829168699,0.0001,180.79,180.78,5.5315]
[1739829169975,0.0001,180.79,180.78,24.55647569]
[1739829173287,0.0001,180.79,180.78,23.7269426]
[1739829173903,0.0001,180.79,180.78,5.5315]
[1739829175305,11.64896978,180.79,180.77,5.5318]
[1739829175614,0.0001,180.79,180.77,5.5318]
[1739829176289,0.0001,180.79,180.76,0.063]
[1739829177906,0.0001,180.79,180.77,5.5318]
[1739829179711,0.0001,180.79,180.76,0.063]
[1739829181815,0.0001,180.79,180.76,5.5951]
[1739829186626,11.64896978,180.79,180.76,5.5951]
[1739829186922,11.64896978,180.79,180.76,0.063]
[1739829187411,0.0001,180.79,180.76,0.063]
[1739829188703,11.64896978,180.79,180.76,0.063]
[1739829190134,11.64886978,180.78,180.76,0.063]
[1739829191021,11.64886978,180.77,180.76,0.063]
[1739829192524,17.18066978,180.77,180.76,0.063]
[1739829192908,18.76536978,180.77,180.76,0.063]
[1739829193233,38.54081831,180.77,180.76,0.063]
[1739829194127,25.12896978,180.77,180.76,0.063]
[1739829196031,38.54081831,180.77,180.76,0.063]
[1739829196240,15.41184853,180.76,180.71,0.063]
[1739829196429,58.2443489,180.72,180.71,0.063]
[1739829197027,11.64886978,180.72,180.71,0.063]
[1739829199740,11.64886978,180.73,180.71,0.063]
[1739829200615,11.64886978,180.72,180.71,0.063]
[1739829201829,13.4802,180.77,180.71,0.063]
[1739829202034,11.64886978,180.74,180.71,0.063]
[1739829202243,11.64886978,180.75,180.71,0.063]
[1739829202524,11.64886978,180.74,180.71,0.063]
[1739829202742,11.64886978,180.73,180.71,0.063]
[1739829203418,11.67886978,180.76,180.71,0.063]
[1739829203622,0.03,180.76,180.73,11.64886978]
[1739829203844,0.03,180.76,180.74,11.64886978]
[1739829204227,0.03,180.76,180.71,0.89285599]
[1739829204430,11.64886978,180.75,180.71,0.063]
[1739829204743,11.64886978,180.73,180.71,0.063]
[1739829205150,11.64886978,180.74,180.71,0.063]
[1739829206557,11.64886978,180.73,180.71,0.063]
[1739829206856,11.64886978,180.72,180.71,0.063]
[1739829207234,11.64886978,180.73,180.71,0.063]
[1739829207545,11.64886978,180.74,180.71,0.063]
[1739829208133,11.64886978,180.75,180.71,0.063]
[1739829209034,11.67886978,180.76,180.71,0.063]
[1739829209950,11.67886978,180.76,180.71,5.5967]
[1739829210254,11.67886978,180.76,180.71,17.24556978]
[1739829210255,0.03,180.76,180.71,17.24556978]
[1739829210636,0.03,180.76,180.72,11.64886978]
[1739829211151,0.03,180.76,180.73,5.5331]
[1739829211744,0.03,180.76,180.74,11.64886978]
[1739829212136,0.03,180.76,180.75,11.64886978]
[1739829213252,0.03,180.76,180.72,5.5333]
[1739829213750,0.03,180.76,180.72,17.18216978]
[1739829213957,0.03,180.76,180.74,11.64886978]
[1739829214359,0.03,180.76,180.75,11.64886978]
[1739829215346,0.03,180.76,180.75,17.18136978]
[1739829215772,0.0001,180.76,180.75,17.18136978]
[1739829216746,0.0001,180.76,180.75,5.5325]
[1739829217561,0.0001,180.76,180.75,4.3285]
[1739829217759,0.0001,180.76,180.73,11.71186978]
[1739829217972,0.0001,180.76,180.74,5.5326]
[1739829220075,0.0001,180.76,180.74,17.18146978]
[1739829220935,0.0001,180.76,180.75,11.64886978]
[1739829221541,0.0001,180.76,180.73,5.5961]
[1739829222038,0.0001,180.76,180.73,17.24496978]
[1739829222635,0.0001,180.76,180.73,5.5961]
[1739829223061,0.0001,180.76,180.73,0.063]
[1739829224873,0.0001,180.76,180.73,11.71186978]
[1739829225441,0.0001,180.76,180.74,11.64886978]
[1739829225775,0.0001,180.79,180.78,20.0]
[1739829226067,0.03,180.9,180.82,20.0]
[1739829226238,0.03,180.9,180.84,11.64886978]
[1739829226239,11.67886978,180.9,180.84,11.64886978]
[1739829226962,11.67886978,180.9,180.83,17.17886978]
[1739829227162,11.64886978,180.89,180.8,0.82929203]
[1739829227468,12.5234,180.94,180.84,11.64886978]
[1739829227648,6.9967,180.94,180.85,11.64886978]
[1739829227853,11.64886978,180.91,180.85,11.64886978]
[1739829228661,18.1835086,180.91,180.85,18.1835086]
[1739829228962,18.1835086,180.9,180.84,18.1835086]
[1739829229979,5.5271,180.93,180.84,18.1835086]
[1739829230261,18.1835086,180.9,180.84,18.1835086]
[1739829230660,18.1835086,180.91,180.85,18.1835086]
[1739829231661,18.1835086,180.9,180.84,18.1835086]
[1739829232552,18.1835086,180.89,180.83,18.1835086]
[1739829232761,18.1835086,180.89,180.82,38.1835086]
[1739829233746,18.1835086,180.89,180.83,18.1835086]
[1739829234470,23.7117086,180.89,180.83,18.1835086]
[1739829234874,13.41184853,180.92,180.83,18.1835086]
[1739829235082,18.1835086,180.89,180.83,18.1835086]
[1739829235457,13.41184853,180.92,180.82,20.0]
[1739829235458,18.1835086,180.88,180.82,38.1835086]
[1739829235658,23.7125086,180.87,180.82,20.0]
[1739829236082,18.1835086,180.84,180.8,81.6]
[1739829236282,18.1835086,180.81,180.76,19.7395086]
[1739829236447,18.1835086,180.8,180.75,81.6]
[1739829236848,18.1835086,180.79,180.73,105.9865086]
[1739829237170,18.1835086,180.78,180.73,0.063]
[1739829237503,18.1835086,180.76,180.73,0.063]
[1739829237844,23.7157086,180.76,180.73,0.063]
[1739829238050,18.1835086,180.75,180.73,0.063]
[1739829238272,18.1835086,180.74,180.73,0.063]
[1739829239156,18.1835086,180.75,180.73,0.063]
[1739829239657,18.1835086,180.74,180.73,0.063]
[1739829240756,31.59535713,180.74,180.73,0.063]
[1739829241773,37.12815713,180.74,180.73,0.063]
[1739829242168,38.12815713,180.74,180.73,0.063]
[1739829242366,59.4674581,180.74,180.73,0.063]
[1739829242572,56.31166573,180.74,180.73,0.063]
[1739829243594,21.0,180.72,180.71,0.063]
[1739829243891,37.3670172,180.72,180.71,0.063]
[1739829244084,50.77886573,180.72,180.71,0.063]
[1739829244285,56.78156573,180.72,180.71,0.063]
[1739829244479,21.0,180.69,180.68,0.063]
[1739829244676,55.17115713,180.69,180.68,0.063]
[1739829245894,60.70545713,180.69,180.68,0.063]
[1739829251385,2.0,180.67,180.57,0.063]
[1739829251585,18.1835086,180.61,180.57,0.063]
[1739829253196,18.1835086,180.62,180.57,0.063]
[1739829254399,18.1835086,180.63,180.58,18.1835086]
[1739829254866,18.1835086,180.63,180.57,18.2465086]
[1739829255695,18.1835086,180.63,180.57,23.7843086]
[1739829257301,18.1835086,180.62,180.57,23.7843086]
[1739829260684,11.67411602,180.62,180.57,17.27491602]
[1739829261608,13.41184853,180.66,180.57,17.27491602]
[1739829261917,0.03,180.68,180.65,11.67411602]
[1739829262119,0.03,180.68,180.67,11.67411602]
[1739829264711,0.03,180.68,180.67,18.2174956]
[1739829267009,0.03,180.68,180.66,38.2174956]
[1739829267313,0.03,180.68,180.65,18.2174956]
[1739829267697,0.03,180.68,180.64,18.2174956]
[1739829270993,18.2474956,180.68,180.63,20.0]
[1739829272199,23.7822956,180.68,180.62,18.2174956]
[1739829272621,5.5648,180.68,180.62,18.2174956]
[1739829272828,18.2174956,180.67,180.61,19.7932956]
[1739829273002,18.2174956,180.66,180.61,1.5758]
[1739829273319,18.2174956,180.64,180.59,81.6]
[1739829273496,5.5648,180.68,180.57,1.5954]
[1739829273497,18.2174956,180.61,180.57,1.5954]
[1739829273702,18.2174956,180.61,180.57,0.063]
[1739829274504,23.7542956,180.61,180.57,0.063]
[1739829276014,18.2174956,180.61,180.57,0.063]
[1739829276216,23.7538956,180.62,180.57,0.063]
[1739829276523,18.2174956,180.65,180.59,18.2174956]
[1739829278615,18.2174956,180.63,180.57,0.063]
[1739829278815,18.2174956,180.63,180.57,18.2804956]
[1739829279217,18.2174956,180.63,180.58,18.2174956]
[1739829280507,23.7536956,180.63,180.58,38.2174956]
[1739829281028,18.2174956,180.64,180.58,38.2174956]
[1739829281234,18.2174956,180.65,180.59,18.2174956]
[1739829281735,18.2174956,180.66,180.6,18.2174956]
[1739829282236,18.2174956,180.65,180.59,18.2174956]
[1739829282537,18.2174956,180.64,180.59,18.2174956]
[1739829282733,18.2174956,180.65,180.59,18.2174956]
[1739829283113,19.77444853,180.68,180.64,18.2174956]
[1739829283114,0.03,180.68,180.64,18.2174956]
[1739829283413,0.03,180.68,180.66,18.2174956]
[1739829283825,0.03,180.68,180.65,18.2174956]
[1739829284032,0.03,180.68,180.66,18.2174956]
[1739829284239,0.03,180.68,180.67,18.2174956]
[1739829285333,0.03,180.68,180.66,20.0]
[1739829285538,0.03,180.68,180.67,18.2174956]
[1739829286039,0.03,180.68,180.67,19.04752395]
[1739829286212,0.03,180.68,180.67,24.58242395]
[1739829286420,0.03,180.68,180.67,23.7523956]
[1739829287033,1.5334,180.77,180.7,20.0]
[1739829287034,18.2174956,180.77,180.7,20.0]
[1739829287230,18.2174956,180.79,180.72,18.2174956]
[1739829287435,18.2174956,180.8,180.74,18.2174956]
[1739829288147,18.2174956,180.78,180.72,18.2174956]
[1739829288349,18.2174956,180.78,180.72,23.7508956]
[1739829288721,18.2174956,180.77,180.71,23.7511956]
[1739829288926,18.2174956,180.76,180.69,18.2174956]
[1739829289242,18.2174956,180.74,180.69,5.5341]
[1739829289661,18.2174956,180.74,180.68,105.3520956]
[1739829290331,18.2174956,180.75,180.68,105.3520956]
[1739829294037,18.2174956,180.75,180.69,18.2174956]
[1739829294249,18.2174956,180.75,180.69,23.7516956]
[1739829296122,18.2474956,180.75,180.69,23.7516956]
[1739829297056,18.2174956,180.71,180.67,0.063]
[1739829297959,18.2174956,180.7,180.67,0.063]
[1739829298147,18.2174956,180.69,180.67,0.063]
[1739829300662,18.2174956,180.7,180.67,0.063]
[1739829301157,18.2174956,180.69,180.67,0.063]
[1739829302238,18.2174956,180.7,180.67,0.063]
[1739829302645,18.2174956,180.69,180.67,0.063]
[1739829302960,18.2174956,180.73,180.67,18.2804956]
[1739829303260,18.2174956,180.72,180.67,0.063]
[1739829304570,5.5331,180.73,180.67,0.063]
[1739829304749,18.2174956,180.72,180.67,0.063]
[1739829307741,23.7508956,180.72,180.67,0.063]
[1739829308050,18.2174956,180.73,180.67,18.2804956]
[1739829308250,24.3180956,180.75,180.68,18.2174956]
[1739829308458,18.2174956,180.74,180.68,18.2174956]
[1739829308677,18.2174956,180.73,180.67,18.2804956]
[1739829309241,0.03,180.72,180.67,18.2804956]
[1739829309571,0.03,180.72,180.68,5.5346]
[1739829310674,18.2474956,180.72,180.67,0.063]
[1739829310866,18.2174956,180.71,180.67,5.5979]
[1739829311167,18.2474956,180.72,180.67,5.5979]
[1739829312983,0.03,180.72,180.67,23.8153956]
[1739829313285,0.03,180.72,180.7,18.2174956]
[1739829313458,0.03,180.72,180.71,18.2174956]
[1739829315075,0.03,180.72,180.71,23.7511956]
[1739829328628,0.03,180.72,180.71,17.18401155]
[1739829330587,0.03,180.72,180.71,23.74368681]
[1739829339722,0.03,180.72,180.71,22.54368681]
[1739829343806,0.03,180.72,180.71,104.14368681]
[1739829345910,0.03,180.72,180.71,85.9337]
[1739829346434,0.03,180.72,180.71,104.14368681]
[1739829347927,0.03,180.72,180.71,85.9337]
[1739829348230,0.03,180.72,180.71,81.6]
[1739829348621,0.03,180.72,180.71,87.1337]
[1739829349428,0.03,180.75,180.71,132.58983534]
[1739829349730,0.03,180.75,180.74,23.74278681]
[1739829350336,0.03,180.75,180.74,24.57242749]
[1739829351129,0.03,180.75,180.74,23.74278681]
[1739829352715,0.03,180.75,180.74,17.18222478]
[1739829353615,0.03,180.75,180.74,5.5328]
[1739829353927,0.03,180.75,180.72,5.5334]
[1739829359011,0.03,180.75,180.72,23.74418446]
[1739829360716,0.03,180.75,180.73,18.21078446]
[1739829360932,0.03,180.75,180.74,18.21078446]
[1739829361138,6.511,180.87,180.77,20.0]
[1739829361328,6.511,180.87,180.82,18.21078446]
[1739829361836,18.21078446,180.86,180.8,18.21078446]
[1739829362046,18.21078446,180.86,180.79,18.21078446]
[1739829362220,12.0398,180.87,180.79,18.21078446]
[1739829362420,18.21078446,180.85,180.79,18.21078446]
[1739829362621,18.21078446,180.84,180.78,18.21078446]
[1739829363212,12.0398,180.87,180.77,101.6]
[1739829363213,5.5295,180.85,180.77,119.81078446]
[1739829363418,18.21078446,180.82,180.77,101.6]
[1739829363614,18.21078446,180.79,180.73,18.21078446]
[1739829363924,18.21078446,180.8,180.74,18.21078446]
[1739829364115,18.21078446,180.84,180.78,18.21078446]
[1739829366643,18.21078446,180.84,180.77,18.21078446]
[1739829367032,19.72358446,180.86,180.8,18.21078446]
[1739829367543,24.72178446,180.87,180.81,18.21078446]
[1739829367726,18.21078446,180.86,180.8,18.21078446]
[1739829367933,18.21078446,180.86,180.79,18.21078446]
[1739829368436,18.21078446,180.83,180.77,18.21078446]
[1739829368739,18.21078446,180.84,180.78,18.21078446]
[1739829369550,23.74048446,180.84,180.78,18.21078446]
[1739829369749,18.21078446,180.82,180.76,18.21078446]
[1739829370050,18.21078446,180.81,180.75,99.87378446]
[1739829370556,18.21078446,180.81,180.75,105.40618446]
[1739829370756,7.083,180.84,180.76,18.21078446]
[1739829371046,18.21078446,180.82,180.76,18.21078446]
[1739829371745,18.21078446,180.81,180.75,99.87378446]
[1739829372148,18.21078446,180.81,180.75,105.40618446]
[1739829373345,23.74148446,180.81,180.75,99.87378446]
[1739829373627,18.21078446,180.8,180.75,81.663]
[1739829373831,18.21078446,180.78,180.75,81.663]
[1739829374042,18.21078446,180.78,180.75,0.063]
[1739829374632,18.21078446,180.8,180.75,0.063]
[1739829375055,23.74148446,180.81,180.75,18.27378446]
[1739829376451,18.21078446,180.81,180.75,18.27378446]
[1739829376653,11.64931927,180.81,180.75,11.71231927]
[1739829377251,5.5304,180.82,180.75,17.24451927]
[1739829377547,17.17971927,180.82,180.75,17.24451927]
[1739829378137,17.17971927,180.82,180.75,0.063]
[1739829378343,11.64931927,180.81,180.75,11.71231927]
[1739829378743,11.64931927,180.82,180.75,11.71231927]
[1739829378942,17.17971927,180.82,180.75,11.71231927]
[1739829379253,11.64931927,180.8,180.75,0.063]
[1739829380154,11.64931927,180.79,180.75,0.063]
[1739829382057,17.18081927,180.79,180.75,0.063]
[1739829382633,11.64931927,180.78,180.75,0.063]
[1739829383732,5.5315,180.79,180.75,0.063]
[1739829383733,11.64931927,180.79,180.75,0.063]
[1739829384155,11.64931927,180.8,180.75,0.063]
[1739829384531,5.5607,180.81,180.75,0.063]
[1739829384532,11.67931927,180.81,180.75,0.063]
[1739829384732,11.67931927,180.81,180.75,11.71231927]
[1739829385727,11.67931927,180.81,180.76,5.5321]
[1739829386166,0.03,180.81,180.76,5.5321]
[1739829387357,11.67931927,180.81,180.76,5.5321]
[1739829389062,11.67931927,180.81,180.75,17.24471927]
[1739829389862,11.64931927,180.78,180.75,0.063]
[1739829390347,11.64931927,180.79,180.75,0.063]
[1739829392853,0.03,180.81,180.75,11.71231927]
[1739829393048,11.67931927,180.81,180.75,11.71231927]
[1739829393974,0.03,180.81,180.76,5.5321]
[1739829394774,11.67931927,180.81,180.76,5.5321]
[1739829395779,11.67931927,180.81,180.75,0.063]
[1739829395976,11.67931927,180.81,180.75,5.5955]
[1739829397987,11.64931927,180.8,180.75,0.063]
[1739829398284,0.03,180.81,180.75,0.063]
[1739829398285,11.64931927,180.79,180.75,0.063]
[1739829398677,11.64931927,180.8,180.75,0.063]
[1739829400599,11.64931927,180.78,180.75,0.063]
[1739829400783,11.64931927,180.77,180.75,0.063]
[1739829401095,11.64931927,180.76,180.75,0.063]
[1739829401775,5.531,180.8,180.75,0.063]
[1739829402093,11.64931927,180.76,180.75,0.063]
[1739829404288,52.80497708,180.81,180.75,0.063]
[1739829404601,11.64931927,180.76,180.75,0.063]
[1739829411012,5.5613,180.79,180.75,0.063]
[1739829411192,11.64931927,180.77,180.75,0.063]
[1739829414013,0.03,180.79,180.75,0.063]
[1739829414212,0.03,180.79,180.76,11.64931927]
[1739829414914,0.03,180.79,180.75,17.24481927]
[1739829415119,0.03,180.79,180.75,5.5955]
[1739829415606,0.03,180.79,180.75,17.24481927]
[1739829416715,0.03,180.79,180.76,11.64931927]
[1739829417512,0.03,180.79,180.75,17.24481927]
[1739829417723,0.03,180.79,180.75,5.5955]
[1739829418020,11.67931927,180.79,180.75,5.5955]
[1739829418323,0.03,180.79,180.75,5.5955]
[1739829418617,11.67931927,180.79,180.75,5.5955]
[1739829418925,11.67931927,180.79,180.75,0.063]
[1739829419222,11.64931927,180.77,180.75,0.063]
[1739829419927,11.64931927,180.78,180.75,0.063]
[1739829421294,0.03,180.79,180.75,0.063]
[1739829422618,0.03,180.79,180.76,11.64931927]
[1739829422819,0.03,180.79,180.76,17.18141927]
[1739829423199,0.03,180.79,180.76,5.5321]
[1739829423998,11.67931927,180.79,180.76,5.5321]
[1739829424198,11.67931927,180.79,180.75,5.5954]
[1739829424807,11.67931927,180.79,180.75,0.063]
[1739829425013,0.03,180.79,180.75,0.063]
[1739829425227,0.03,180.79,180.75,11.71231927]
[1739829426022,11.67931927,180.79,180.75,0.063]
[1739829426724,11.64931927,180.78,180.75,0.063]
[1739829427495,11.67931927,180.79,180.75,0.063]
[1739829427700,11.64931927,180.78,180.75,0.063]
[1739829428824,11.64931927,180.76,180.75,0.063]
[1739829429026,17.18141927,180.76,180.75,0.063]
[1739829430103,30.5932678,180.76,180.75,0.063]
[1739829431309,11.64931927,180.76,180.75,0.063]
[1739829431744,11.64931927,180.78,180.75,0.063]
[1739829431903,0.03,180.79,180.75,0.063]
[1739829432108,0.03,180.79,180.75,11.71231927]
[1739829433624,0.03,180.79,180.76,5.5321]
[1739829436947,0.03,180.79,180.78,11.64931927]
[1739829437749,0.03,180.79,180.77,11.64931927]
[1739829437911,0.03,180.79,180.76,17.18141927]
[1739829438349,0.03,180.79,180.78,11.64931927]
[1739829439248,0.03,180.79,180.78,17.18081927]
[1739829439452,0.03,180.81,180.78,17.18081927]
[1739829439627,0.03,180.81,180.8,11.64931927]
[1739829440117,0.0001,180.81,180.8,11.64931927]
[1739829440318,0.0001,180.81,180.8,13.15381927]
[1739829441419,0.0001,180.81,180.8,18.68471927]
[1739829445060,0.0001,180.81,180.8,100.28471927]
[1739829448852,0.0001,180.81,180.8,113.6965678]
[1739829450157,0.0001,180.81,180.8,160.29384488]
[1739829450349,0.03,180.87,180.84,20.0]
[1739829450677,0.03,180.87,180.86,11.64931927]
[1739829451054,0.0001,180.87,180.86,11.64931927]
[1739829451254,0.0001,180.87,180.86,25.0611678]
[1739829451467,0.0001,180.89,180.88,20.0]
[1739829451670,0.0001,180.89,180.88,32.47821087]
[1739829452261,0.0001,180.89,180.88,38.00671087]
[1739829452460,0.0001,180.89,180.86,81.6]
[1739829452861,0.0001,180.89,180.86,87.1291]
[1739829453967,0.0001,180.89,180.86,98.77841927]
[1739829454675,0.0001,180.89,180.86,105.31123992]
[1739829456567,0.0001,180.89,180.86,87.1291]
[1739829456874,18.18213992,180.88,180.82,18.18213992]
[1739829457062,18.18213992,180.87,180.8,18.18213992]
[1739829457255,18.18213992,180.86,180.8,23.71303992]
[1739829457453,18.18213992,180.87,180.8,23.71303992]
[1739829457660,18.18213992,180.87,180.81,18.18213992]
[1739829457967,18.18213992,180.88,180.82,18.18213992]
[1739829458357,18.18213992,180.88,180.82,23.71233992]
[1739829458561,24.35813992,180.89,180.82,23.71233992]
[1739829458759,0.0001,180.89,180.86,18.18213992]
[1739829459574,0.0001,180.89,180.87,18.18213992]
[1739829459767,0.0001,180.89,180.88,18.18213992]
[1739829460479,0.0001,180.89,180.88,23.71063992]
[1739829461060,0.0001,180.89,180.88,24.53959354]
[1739829461261,0.0001,180.89,180.88,37.95144207]
[1739829462270,0.0001,180.91,180.9,18.18213992]
[1739829462463,0.0001,180.91,180.9,24.53895726]
[1739829462674,0.0001,180.91,180.9,44.53895726]
[1739829463272,0.0001,180.91,180.9,57.95080579]
[1739829464788,0.0001,180.91,180.9,76.13294571]
[1739829465792,0.0001,180.91,180.9,157.73294571]
[1739829465977,0.0001,180.91,180.9,156.90402837]
[1739829471696,0.0001,180.91,180.9,157.90402837]
[1739829472197,0.0001,180.91,180.9,156.90402837]
[1739829473593,0.0001,180.91,180.9,125.31003992]
[1739829475379,0.0001,180.91,180.9,43.71003992]
[1739829477177,0.0001,180.91,180.9,5.5279]
[1739829477580,0.0001,180.91,180.89,5.5281]
[1739829477892,0.0001,180.91,180.89,23.71023992]
[1739829478075,0.0001,180.91,180.89,23.77323992]
[1739829478279,0.0001,180.91,180.9,18.18213992]
[1739829479301,0.0001,180.91,180.9,23.71003992]
[1739829480205,0.0001,180.91,180.9,5.5279]
[1739829480495,0.0001,180.91,180.89,23.77323992]
[1739829480686,0.0001,180.91,180.89,17.22292721]
[1739829480883,0.0001,180.91,180.9,11.63182721]
[1739829483112,0.0001,180.91,180.9,17.15972721]
[1739829484983,0.0001,180.91,180.9,63.68703605]
[1739829485392,0.03,180.95,180.93,20.0]
[1739829485610,0.03,180.95,180.94,12.46049739]
[1739829486485,0.03,180.95,180.94,11.63182721]
[1739829487305,0.03,180.95,180.94,17.15842721]
[1739829488694,0.03,180.95,180.94,23.69106917]
[1739829500222,0.03,180.96,180.94,24.5198049]
[1739829500400,0.03,180.96,180.95,18.16446917]
[1739829501723,0.03,180.96,180.95,23.69076917]
[1739829505813,0.03,181.0,180.97,20.0]
[1739829506016,0.03,181.0,180.97,38.99301153]
[1739829506418,0.0001,180.98,180.97,38.99301153]
[1739829507407,0.0001,181.0,180.97,70.56932923]
[1739829507607,0.0001,181.0,180.99,18.16446917]
[1739829507806,0.0001,181.0,180.99,18.99289999]
[1739829508012,0.0001,181.0,180.99,24.51799999]
[1739829508526,0.0001,181.0,180.99,56.09431769]
[1739829508733,0.0001,181.0,180.99,77.82535955]
[1739829508931,0.03,181.08,181.02,20.0]
[1739829509224,0.03,181.08,181.07,11.61199604]
[1739829510217,0.03,181.08,181.07,17.13469604]
[1739829511305,0.03,181.08,181.07,17.96279862]
[1739829511520,0.0001,181.08,181.07,17.96279862]
[1739829512435,0.0001,181.08,181.07,31.37464715]